[Event "CIS Master Groups 2024"]
[Site "Vasto"]
[Date "2024.04.13"]
[Round "9.3"]
[White "Di Benedetto, Edoardo"]
[Black "Dvirnyy, Danyyil"]
[Result "1/2-1/2"]
[ECO "E65"]
[WhiteElo "2400"]
[BlackElo "2480"]
[Annotator "RC"]
[PlyCount "49"]
[EventDate "2024.04.07"]
[EventType "team-tourn"]
[EventCountry "ITA"]
[SourceTitle "playchess.com"]
[Source "ChessBase"]
[SourceQuality "1"]
[TimeControl "40/5400+30:900+30"]

1. d4 {[%emt 1:05:42]} Nf6 {[%emt 1:05:54]} 2. Nf3 {[%emt 0:00:22]} g6 {[%emt 0:00:35]} 3. g3 {[%emt 0:00:21]} Bg7 {[%emt 0:00:21]} 4. Bg2 {[%emt 0:00:21]} O-O {[%emt 0:00:23]} 5. c4 {[%emt 0:00:22]} d6 {[%emt 0:00:24]} 6. Nc3 {[%emt 0:00:22]} c5 {[%emt 0:00:25]} 7. O-O {[%emt 0:00:35]} Nc6 {[%emt 0:00:23]} 8. dxc5 {[%emt 0:00:34]} dxc5 {[%emt 0:00:22]} 9. Be3 {[%emt 0:00:23]} Be6 {[%emt 0:01:51]} 10. Qa4 {[%emt 0:00:36]} Nd4 {[%emt 0:01:05]} 11. Bxd4 {[%emt 0:01:21]} cxd4 {[%emt 0:00:26]} 12. Nb5 {[%emt 0:00:28]} Bd7 {[%emt 0:01:30]} 13. Qb3 {[%emt 0:01:11]} Bxb5 {[%emt 0:09:02]} 14. Qxb5 {[%emt 0:00:52]} Rb8 {[%emt 0:01:55]} 15. Rad1 {[%emt 0:00:43]} Ne8 {[%emt 0:01:54]} 16. Qa4 {[%emt 0:04:15]} Qb6 {[%emt 0:01:27]} 17. b4 {[%emt 0:00:47]} Nc7 {[%emt 0:00:22]} 18. c5 {[%emt 0:01:52]} Qb5 {[%emt 0:00:21]} 19. Qb3 {[%emt 0:00:24]} a5 {[%emt 0:00:27]} 20. Nxd4 {[%emt 0:00:35]} Qxb4 {[%emt 0:00:26]} 21. Qxb4 {[%emt 0:00:39]} axb4 {[%emt 0:00:21]} 22. Nb3 {[%emt 0:00:20]} Rfc8 {[%emt 0:01:28]} 23. Na5 {[%emt 0:01:17]} Ne6 {[%emt 0:00:35]} 24. Nxb7 {[%emt 0:00:34]} Nxc5 {[%emt 0:00:27]} 25. Nxc5 {[%emt 0:00:42]} 1/2-1/2

[Event "CIS Master Groups 2024"]
[Site "Vasto"]
[Date "2024.04.13"]
[Round "9.4"]
[White "Gilevych, Artem"]
[Black "Ladron De Guevara Pinto, Paolo"]
[Result "1-0"]
[ECO "D35"]
[WhiteElo "2417"]
[BlackElo "2394"]
[Annotator "RC"]
[PlyCount "67"]
[EventDate "2024.04.07"]
[EventType "team-tourn"]
[EventCountry "ITA"]
[SourceTitle "playchess.com"]
[Source "ChessBase"]
[SourceQuality "1"]
[TimeControl "40/5400+30:900+30"]

1. d4 {[%emt 1:05:43]} Nf6 {[%emt 1:05:42]} 2. c4 {[%emt 0:00:21]} e6 {[%emt 0:00:21]} 3. Bf4 {[%emt 0:00:21]} d5 {[%emt 0:02:15]} 4. cxd5 {[%emt 0:00:22]} exd5 {[%emt 0:00:26]} 5. Nc3 {[%emt 0:01:52]} Bd6 {[%emt 0:00:48]} 6. Bxd6 {[%emt 0:00:48]} Qxd6 {[%emt 0:00:23]} 7. e3 {[%emt 0:00:55]} O-O {[%emt 0:01:25]} 8. Bd3 {[%emt 0:00:28]} c6 {[%emt 0:00:54]} 9. Nge2 {[%emt 0:00:47]} Re8 {[%emt 0:00:31]} 10. Qd2 {[%emt 0:02:05]} Nbd7 {[%emt 0:02:51]} 11. O-O {[%emt 0:04:41]} Nf8 {[%emt 0:01:40]} 12. Rae1 {[%emt 0:00:25]} Bg4 {[%emt 0:03:23]} 13. f3 {[%emt 0:01:40]} Bh5 {[%emt 0:02:21]} 14. h3 {[%emt 0:03:27]} Bg6 {[%emt 0:01:41]} 15. Nf4 {[%emt 0:02:18]} Bxd3 {[%emt 0:02:57]} 16. Nxd3 {[%emt 0:00:37]} N8d7 {[%emt 0:02:21]} 17. Qf2 {[%emt 0:03:24]} Nh5 {[%emt 0:02:51]} 18. g4 {[%emt 0:02:23]} Ng3 {[%emt 0:05:05]} 19. Qh2 {[%emt 0:00:29]} Qb8 {[%emt 0:00:22]} 20. Rf2 {[%emt 0:01:12]} h5 {[%emt 0:00:20]} 21. Rd2 {[%emt 0:02:35]} h4 {[%emt 0:00:28]} 22. Qf2 {[%emt 0:00:37]} Qd6 {[%emt 0:01:26]} 23. Ne2 {[%emt 0:01:39]} Qh6 {[%emt 0:00:21]} 24. Ndf4 {[%emt 0:01:19]} Nxe2+ {[%emt 0:00:39]} 25. Rdxe2 {[%emt 0:00:29]} Re7 {[%emt 0:00:52]} 26. Ng2 {[%emt 0:00:40]} g5 {[%emt 0:00:22]} 27. e4 {[%emt 0:00:21]} dxe4 {[%emt 0:00:41]} 28. Ne3 {[%emt 0:00:38]} Qf6 {[%emt 0:00:47]} 29. Nf5 {[%emt 0:00:25]} Re6 {[%emt 0:00:26]} 30. fxe4 {[%emt 0:00:30]} c5 {[%emt 0:00:38]} 31. e5 {[%emt 0:00:40]} Qg6 {[%emt 0:00:24]} 32. d5 {[%emt 0:00:27]} Ree8 {[%emt 0:00:25]} 33. e6 {[%emt 0:00:31]} Nf6 {[%emt 0:00:38]} 34. exf7+ {[%emt 0:00:33]} 1-0

[Event "CIS Master Groups 2024"]
[Site "Vasto"]
[Date "2024.04.13"]
[Round "9.5"]
[White "Shevchenko, Kirill"]
[Black "Fier, Alexandr"]
[Result "1/2-1/2"]
[ECO "B23"]
[WhiteElo "2675"]
[BlackElo "2566"]
[Annotator "TA"]
[PlyCount "40"]
[EventDate "2024.04.07"]
[EventType "team-tourn"]
[EventCountry "ITA"]
[SourceTitle "playchess.com"]
[Source "ChessBase"]
[SourceQuality "1"]
[TimeControl "40/5400+30:900+30"]

{[%evp 10,40,13,14,21,0,2,12,15,26,17,17,31,22,28,29,27,29,29,24,23,21,33,8,14,5,0,0,8,8,20,0,0]} 1. e4 {[%emt 1:05:43]} c5 {[%emt 1:05:41]} 2. Nc3 {[%emt 0:00:29]} Nc6 {[%emt 0:00:21]} 3. Bb5 {[%emt 0:00:24]} Nd4 {[%emt 0:00:22]} 4. Nf3 {[%emt 0:00:21][%cal Bg1f3,Bf3d4,Bd4f5][%mdl 32]} Nxb5 {[%emt 0:00:26]} 5. Nxb5 {[%emt 0:00:22]} d6 {[%emt 0:00:23]} 6. d4 {[%emt 0:00:31]} Nf6 {[%emt 0:00:21]} 7. Qd3 {[%emt 0:00:23] White wants to play dxc5.} a6 {[%emt 0:00:38]} 8. Nc3 {[%emt 0:00:22] Threatening dxc5.} cxd4 {[%emt 0:00:22]} 9. Nxd4 {[%emt 0:00:21]} e5 {[%emt 0:00:34]} 10. Nf5 {[%emt 0:01:13]} h6 {[%emt 0:00:21] Prevents Bg5.} 11. Ne3 {[%emt 0:01:55]} Be6 {[%emt 0:00:24]} 12. O-O {[%emt 0:00:52]} Rc8 {[%emt 0:00:22]} 13. Ncd5 {[%emt 0:01:36]} Nxd5 {[%emt 0:01:33]} 14. Nxd5 {[%emt 0:02:38]} Bxd5 {[%emt 0:01:52]} 15. Qxd5 {[%emt 0:00:31]} Qd7 {[%emt 0:00:21]} 16. c4 {[%emt 0:06:43]} Qc6 {[%emt 0:00:30] The position is equal.} 17. Be3 {[%emt 0:00:23]} Qxd5 {[%emt 0:00:26]} 18. cxd5 {[%emt 0:00:21]} Be7 {[%emt 0:00:24]} 19. Rfc1 {[%emt 0:00:40]} Kd7 {[%emt 0:00:21]} 20. Kf1 {[%emt 0:00:26]} Bg5 {[%emt 0:00:39] A rather calm draw.   Weighted Error Value: White=0.05 (flawless) /Black=0.02 (flawless) .  OK:         	White=7     	Black=9} 1/2-1/2

[Event "CIS Master Groups 2024"]
[Site "Vasto"]
[Date "2024.04.13"]
[Round "9.6"]
[White "Iermito, Sebastian"]
[Black "Lodici, Lorenzo"]
[Result "1/2-1/2"]
[ECO "A07"]
[WhiteElo "2511"]
[BlackElo "2565"]
[Annotator "RC"]
[PlyCount "39"]
[EventDate "2024.04.07"]
[EventType "team-tourn"]
[EventCountry "ITA"]
[SourceTitle "playchess.com"]
[Source "ChessBase"]
[SourceQuality "1"]
[TimeControl "40/5400+30:900+30"]

1. Nf3 {[%emt 1:05:42]} d5 {[%emt 1:05:41]} 2. g3 {[%emt 0:00:21]} c6 {[%emt 0:00:21]} 3. Bg2 {[%emt 0:00:23]} Bf5 {[%emt 0:00:22]} 4. O-O {[%emt 0:00:27]} e6 {[%emt 0:00:21]} 5. d3 {[%emt 0:00:22]} h6 {[%emt 0:00:30]} 6. c4 {[%emt 0:00:24]} dxc4 {[%emt 0:00:22]} 7. d4 {[%emt 0:02:15]} Nd7 {[%emt 0:00:21]} 8. Nbd2 {[%emt 0:01:42]} Nb6 {[%emt 0:01:17]} 9. Ne5 {[%emt 0:02:27]} Qxd4 {[%emt 0:05:46]} 10. Ndxc4 {[%emt 0:00:21]} Qxd1 {[%emt 0:00:22]} 11. Rxd1 {[%emt 0:00:21]} f6 {[%emt 0:02:35]} 12. Nxb6 {[%emt 0:01:49]} axb6 {[%emt 0:00:21]} 13. Nxc6 {[%emt 0:00:21]} e5 {[%emt 0:00:20]} 14. Bd2 {[%emt 0:02:23]} Bc5 {[%emt 0:01:14]} 15. Nb4 {[%emt 0:01:52]} O-O-O {[%emt 0:00:22]} 16. Nd5 {[%emt 0:01:29]} Be6 {[%emt 0:01:10]} 17. Nc3 {[%emt 0:02:27]} Ne7 {[%emt 0:02:24]} 18. Na4 {[%emt 0:00:52]} Nc6 {[%emt 0:01:21]} 19. Nxc5 {[%emt 0:01:10]} bxc5 {[%emt 0:00:21]} 20. Bxc6 {[%emt 0:00:21]} 1/2-1/2

[Event "CIS Master Groups 2024"]
[Site "Vasto"]
[Date "2024.04.13"]
[Round "9.7"]
[White "Barp, Alberto"]
[Black "Godena, Michele"]
[Result "1/2-1/2"]
[ECO "D25"]
[WhiteElo "2470"]
[BlackElo "2429"]
[Annotator "RC"]
[PlyCount "68"]
[EventDate "2024.04.07"]
[EventType "team-tourn"]
[EventCountry "ITA"]
[SourceTitle "playchess.com"]
[Source "ChessBase"]
[SourceQuality "1"]
[TimeControl "40/5400+30:900+30"]

1. d4 {[%emt 1:05:44]} d5 {[%emt 1:05:41]} 2. c4 {[%emt 0:00:21]} dxc4 {[%emt 0:00:22]} 3. Nf3 {[%emt 0:00:25]} Nf6 {[%emt 0:00:38]} 4. e3 {[%emt 0:00:24]} Be6 {[%emt 0:04:12]} 5. Nc3 {[%emt 0:07:18]} h6 {[%emt 0:00:31]} 6. Ne5 {[%emt 0:02:09]} c5 {[%emt 0:00:27]} 7. Qa4+ {[%emt 0:04:45]} Nbd7 {[%emt 0:00:27]} 8. Bxc4 {[%emt 0:02:57]} Bxc4 {[%emt 0:00:25]} 9. Nxc4 {[%emt 0:00:40]} e6 {[%emt 0:08:03]} 10. O-O {[%emt 0:01:36]} a6 {[%emt 0:02:17]} 11. Qd1 {[%emt 0:00:31]} b5 {[%emt 0:02:44]} 12. Ne5 {[%emt 0:00:27]} Bd6 {[%emt 0:00:22]} 13. Nxd7 {[%emt 0:01:24]} Qxd7 {[%emt 0:00:22]} 14. Qf3 {[%emt 0:00:58]} O-O {[%emt 0:00:44]} 15. dxc5 {[%emt 0:00:21]} Bxc5 {[%emt 0:00:22]} 16. e4 {[%emt 0:00:22]} Qe7 {[%emt 0:04:07]} 17. e5 {[%emt 0:01:53]} Nd7 {[%emt 0:00:23]} 18. Qg3 {[%emt 0:00:22]} Bd4 {[%emt 0:01:16]} 19. Re1 {[%emt 0:01:52]} Kh8 {[%emt 0:02:59]} 20. Re4 {[%emt 0:00:40]} Bxc3 {[%emt 0:01:06]} 21. bxc3 {[%emt 0:00:48]} f5 {[%emt 0:02:33]} 22. exf6 {[%emt 0:00:58]} Nxf6 {[%emt 0:00:21]} 23. Re1 {[%emt 0:01:19]} Rac8 {[%emt 0:00:51]} 24. Qh3 {[%emt 0:01:16]} Qf7 {[%emt 0:00:39]} 25. Ba3 {[%emt 0:00:59]} Rfd8 {[%emt 0:00:39]} 26. Qxe6 {[%emt 0:00:50]} Qxe6 {[%emt 0:00:21]} 27. Rxe6 {[%emt 0:00:22]} Rxc3 {[%emt 0:00:22]} 28. Bb2 {[%emt 0:01:40]} Rc2 {[%emt 0:00:34]} 29. Bxf6 {[%emt 0:00:34]} gxf6 {[%emt 0:00:21]} 30. Rxa6 {[%emt 0:01:01]} Kg7 {[%emt 0:00:35]} 31. Rf1 {[%emt 0:00:50]} Rdd2 {[%emt 0:00:30]} 32. a4 {[%emt 0:00:29]} b4 {[%emt 0:00:33]} 33. Rb6 {[%emt 0:00:24]} Rb2 {[%emt 0:00:56]} 34. a5 {[%emt 0:00:22]} Rd3 {[%emt 0:00:26]} 1/2-1/2

[Event "CIS Master Groups 2024"]
[Site "Vasto"]
[Date "2024.04.13"]
[Round "9.8"]
[White "Bellia, Fabrizio"]
[Black "Cappelletto, Joshuaede"]
[Result "0-1"]
[ECO "B92"]
[WhiteElo "2384"]
[BlackElo "2306"]
[Annotator "RC"]
[PlyCount "176"]
[EventDate "2024.04.07"]
[EventType "team-tourn"]
[EventCountry "ITA"]
[SourceTitle "playchess.com"]
[Source "ChessBase"]
[SourceQuality "1"]
[TimeControl "40/5400+30:900+30"]

1. e4 {[%emt 1:05:43]} c5 {[%emt 1:05:42]} 2. Nf3 {[%emt 0:00:22]} d6 {[%emt 0:00:21]} 3. d4 {[%emt 0:00:25]} cxd4 {[%emt 0:00:22]} 4. Nxd4 {[%emt 0:00:21]} Nf6 {[%emt 0:00:22]} 5. Nc3 {[%emt 0:00:23]} a6 {[%emt 0:00:22]} 6. Be2 {[%emt 0:00:21]} e5 {[%emt 0:00:22]} 7. Nb3 {[%emt 0:00:22]} Be7 {[%emt 0:00:25]} 8. O-O {[%emt 0:00:23]} O-O {[%emt 0:00:23]} 9. Be3 {[%emt 0:00:22]} Be6 {[%emt 0:00:22]} 10. Nd5 {[%emt 0:00:22]} Nbd7 {[%emt 0:00:39]} 11. Qd3 {[%emt 0:00:21]} Bxd5 {[%emt 0:01:27]} 12. exd5 {[%emt 0:00:23]} Ne8 {[%emt 0:00:26]} 13. a4 {[%emt 0:00:46]} f5 {[%emt 0:00:40]} 14. f4 {[%emt 0:00:56]} g6 {[%emt 0:01:21]} 15. Kh1 {[%emt 0:00:44]} Nef6 {[%emt 0:04:04]} 16. a5 {[%emt 0:00:43]} Rc8 {[%emt 0:00:58]} 17. c4 {[%emt 0:01:43]} Ne4 {[%emt 0:00:29]} 18. g4 {[%emt 0:01:06]} exf4 {[%emt 0:07:46]} 19. Bxf4 {[%emt 0:00:27]} Ndc5 {[%emt 0:00:29]} 20. Nxc5 {[%emt 0:00:34]} Nxc5 {[%emt 0:00:22]} 21. Qg3 {[%emt 0:00:42]} Qd7 {[%emt 0:05:19]} 22. Rae1 {[%emt 0:02:00]} Ne4 {[%emt 0:01:11]} 23. Qg2 {[%emt 0:01:08]} Bh4 {[%emt 0:01:56]} 24. Rd1 {[%emt 0:01:01]} Rce8 {[%emt 0:00:46]} 25. Bh6 {[%emt 0:11:54]} Rf6 {[%emt 0:00:32]} 26. Bc1 {[%emt 0:02:30]} Qe7 {[%emt 0:00:50]} 27. g5 {[%emt 0:04:12]} Bxg5 {[%emt 0:00:51]} 28. Bxg5 {[%emt 0:00:37]} Nxg5 {[%emt 0:00:21]} 29. Qxg5 {[%emt 0:00:33]} Qxe2 {[%emt 0:00:21]} 30. Qxf6 {[%emt 0:00:28]} Qe4+ {[%emt 0:00:34]} 31. Kg1 {[%emt 0:00:25]} Qg4+ {[%emt 0:00:22]} 32. Kh1 {[%emt 0:00:52]} Qe4+ {[%emt 0:00:25]} 33. Kg1 {[%emt 0:00:21]} Qg4+ {[%emt 0:00:21]} 34. Kh1 {[%emt 0:00:21]} Re2 {[%emt 0:01:08]} 35. Rf2 {[%emt 0:01:01]} Rxf2 {[%emt 0:00:32]} 36. Qd8+ {[%emt 0:00:21]} Kg7 {[%emt 0:00:23]} 37. Qe7+ {[%emt 0:00:20]} Kh6 {[%emt 0:01:20]} 38. Qe3+ {[%emt 0:00:21]} f4 {[%emt 0:00:57]} 39. Qxf2 {[%emt 0:00:22]} Qxd1+ {[%emt 0:04:29]} 40. Kg2 g5 {[%emt 0:00:00]} 41. h3 {[%emt 0:15:55]} Qd3 {[%emt 0:11:58]} 42. Qe1 {[%emt 0:00:56]} Qc2+ {[%emt 0:01:28]} 43. Kg1 {[%emt 0:00:42]} Qxb2 {[%emt 0:00:41]} 44. Qe6+ {[%emt 0:00:29]} Kh5 {[%emt 0:00:21]} 45. Qg4+ {[%emt 0:00:41]} Kg6 {[%emt 0:00:22]} 46. Qe6+ {[%emt 0:00:22]} Qf6 {[%emt 0:00:21]} 47. Qe4+ {[%emt 0:01:13]} Qf5 {[%emt 0:01:03]} 48. Qe8+ {[%emt 0:00:38]} Kh6 {[%emt 0:00:39]} 49. Qe7 {[%emt 0:00:49]} Qg6 {[%emt 0:02:10]} 50. Kf2 {[%emt 0:00:43]} Qc2+ {[%emt 0:00:42]} 51. Kf3 {[%emt 0:01:24]} Qd1+ {[%emt 0:00:25]} 52. Kf2 {[%emt 0:00:28]} Qd4+ {[%emt 0:00:36]} 53. Kf3 {[%emt 0:00:27]} Qd1+ {[%emt 0:00:30]} 54. Kf2 {[%emt 0:00:21]} Qd2+ {[%emt 0:00:33]} 55. Kf3 {[%emt 0:00:21]} Qd3+ {[%emt 0:00:32]} 56. Kg4 {[%emt 0:00:32]} Qg3+ {[%emt 0:00:21]} 57. Kf5 {[%emt 0:00:21]} Qxh3+ {[%emt 0:00:22]} 58. Kf6 {[%emt 0:00:20]} Qc3+ {[%emt 0:00:21]} 59. Ke6 {[%emt 0:00:27]} Qe3+ {[%emt 0:00:25]} 60. Kxd6 {[%emt 0:00:22]} Qxe7+ {[%emt 0:00:37]} 61. Kxe7 {[%emt 0:00:21]} f3 {[%emt 0:00:21]} 62. d6 {[%emt 0:00:22]} f2 {[%emt 0:00:21]} 63. d7 {[%emt 0:00:21]} f1=Q {[%emt 0:00:22]} 64. d8=Q {[%emt 0:00:21]} Qe2+ {[%emt 0:00:31]} 65. Kf8 {[%emt 0:01:30]} Qe6 {[%emt 0:00:27]} 66. Qb6 {[%emt 0:00:37]} Qxb6 {[%emt 0:00:39]} 67. axb6 {[%emt 0:00:21]} g4 {[%emt 0:00:21]} 68. c5 {[%emt 0:00:21]} g3 {[%emt 0:00:20]} 69. c6 {[%emt 0:00:21]} g2 {[%emt 0:00:21]} 70. c7 {[%emt 0:00:26]} g1=Q {[%emt 0:00:21]} 71. c8=Q {[%emt 0:00:23]} Qg7+ {[%emt 0:02:29]} 72. Ke8 Qg8+ {[%emt 0:00:00]} 73. Kd7 {[%emt 0:00:41]} Qd5+ {[%emt 0:00:00]} 74. Ke8 {[%emt 0:00:46]} Qb5+ {[%emt 0:00:07]} 75. Kf7 {[%emt 0:01:28]} Qxb6 {[%emt 0:00:30]} 76. Qc1+ {[%emt 0:00:59]} Kh5 {[%emt 0:00:23]} 77. Qd1+ {[%emt 0:00:22]} Kg5 {[%emt 0:00:23]} 78. Qd5+ {[%emt 0:00:22]} Kf4 {[%emt 0:00:23]} 79. Qd2+ {[%emt 0:00:20]} Ke4 {[%emt 0:00:23]} 80. Qg2+ {[%emt 0:00:42]} Ke5 {[%emt 0:00:24]} 81. Qg3+ {[%emt 0:00:49]} Kd5 {[%emt 0:00:21]} 82. Qf3+ {[%emt 0:00:36]} Kd6 {[%emt 0:00:27]} 83. Qf4+ {[%emt 0:00:23]} Kd7 {[%emt 0:00:26]} 84. Qf5+ {[%emt 0:00:30]} Kd8 {[%emt 0:00:29]} 85. Qd3+ {[%emt 0:00:33]} Kc8 {[%emt 0:00:24]} 86. Qf5+ {[%emt 0:00:31]} Kb8 {[%emt 0:00:22]} 87. Qf3 {[%emt 0:00:26]} a5 {[%emt 0:00:30]} 88. Ke8 {[%emt 0:00:30]} Qc6+ {[%emt 0:00:21]} 0-1

[Event "CIS Master Groups 2024"]
[Site "Vasto"]
[Date "2024.04.13"]
[Round "9.17"]
[White "Mastrovasilis, Dimitrios"]
[Black "Favaloro, Andrea"]
[Result "1/2-1/2"]
[ECO "C68"]
[WhiteElo "2576"]
[BlackElo "2412"]
[Annotator "RC"]
[PlyCount "70"]
[EventDate "2024.04.07"]
[EventType "team-tourn"]
[EventCountry "ITA"]
[SourceTitle "playchess.com"]
[Source "ChessBase"]
[SourceQuality "1"]
[TimeControl "40/5400+30:900+30"]

1. e4 {[%emt 1:05:43]} e5 {[%emt 1:05:45]} 2. Nf3 {[%emt 0:00:24]} Nc6 {[%emt 0:00:24]} 3. Bb5 {[%emt 0:00:31]} a6 {[%emt 0:00:25]} 4. Bxc6 {[%emt 0:00:30]} dxc6 {[%emt 0:00:23]} 5. Nc3 {[%emt 0:00:22]} f6 {[%emt 0:00:41]} 6. d4 {[%emt 0:00:35]} exd4 {[%emt 0:00:24]} 7. Nxd4 {[%emt 0:00:24]} c5 {[%emt 0:00:25]} 8. Nde2 {[%emt 0:00:24]} Qxd1+ {[%emt 0:00:27]} 9. Nxd1 {[%emt 0:00:23]} Be6 {[%emt 0:01:16]} 10. Bf4 {[%emt 0:01:02]} O-O-O {[%emt 0:00:30]} 11. Ne3 {[%emt 0:00:33]} Ne7 {[%emt 0:00:35]} 12. f3 {[%emt 0:01:04]} g5 {[%emt 0:02:03]} 13. Bg3 {[%emt 0:00:22]} Bg7 {[%emt 0:01:07]} 14. h4 {[%emt 0:07:52]} f5 {[%emt 0:01:27]} 15. hxg5 {[%emt 0:04:59]} fxe4 {[%emt 0:07:49]} 16. c3 {[%emt 0:04:09]} exf3 {[%emt 0:00:42]} 17. gxf3 {[%emt 0:00:22]} Nd5 {[%emt 0:01:05]} 18. Nxd5 {[%emt 0:01:48]} Bxd5 {[%emt 0:00:39]} 19. Kf2 {[%emt 0:00:41]} Bc4 {[%emt 0:02:14]} 20. Bf4 {[%emt 0:00:39]} Rhe8 {[%emt 0:04:42]} 21. Ng3 {[%emt 0:02:09]} Be5 {[%emt 0:05:08]} 22. Bxe5 {[%emt 0:00:26]} Rxe5 {[%emt 0:00:22]} 23. Ne4 {[%emt 0:00:22]} Bd3 {[%emt 0:02:01]} 24. Rae1 {[%emt 0:01:18]} Bxe4 {[%emt 0:00:32]} 25. Rxe4 {[%emt 0:00:22]} Rxg5 {[%emt 0:00:51]} 26. Rxh7 {[%emt 0:00:22]} Rdg8 {[%emt 0:01:15]} 27. b3 {[%emt 0:03:40]} Rg2+ {[%emt 0:00:26]} 28. Ke3 {[%emt 0:00:22]} R8g7 {[%emt 0:00:36]} 29. Rxg7 {[%emt 0:02:22]} Rxg7 {[%emt 0:00:21]} 30. Rg4 {[%emt 0:00:39]} Rh7 {[%emt 0:00:35]} 31. Rg2 {[%emt 0:00:36]} Re7+ {[%emt 0:00:28]} 32. Kf4 {[%emt 0:00:25]} Rf7+ {[%emt 0:00:23]} 33. Ke4 {[%emt 0:00:22]} Re7+ {[%emt 0:00:25]} 34. Kf4 {[%emt 0:00:27]} Rf7+ {[%emt 0:00:29]} 35. Ke4 {[%emt 0:00:22]} Re7+ {[%emt 0:00:48]} 1/2-1/2

[Event "CIS Master Groups 2024"]
[Site "Vasto"]
[Date "2024.04.13"]
[Round "9.18"]
[White "Iturrizaga Bonelli, Eduardo"]
[Black "David, Alberto"]
[Result "1/2-1/2"]
[ECO "A55"]
[WhiteElo "2589"]
[BlackElo "2512"]
[Annotator "RC"]
[PlyCount "76"]
[EventDate "2024.04.07"]
[EventType "team-tourn"]
[EventCountry "ITA"]
[SourceTitle "playchess.com"]
[Source "ChessBase"]
[SourceQuality "1"]
[TimeControl "40/5400+30:900+30"]

1. c4 {[%emt 1:05:42]} e5 {[%emt 1:05:42]} 2. g3 {[%emt 0:00:27]} c6 {[%emt 0:00:29]} 3. Nf3 {[%emt 0:00:26]} d6 {[%emt 0:00:45]} 4. Nc3 {[%emt 0:00:25]} Nf6 {[%emt 0:00:24]} 5. Bg2 {[%emt 0:00:32]} Nbd7 {[%emt 0:01:20]} 6. O-O {[%emt 0:00:28]} Be7 {[%emt 0:00:23]} 7. e4 {[%emt 0:02:05]} a6 {[%emt 0:01:37]} 8. d4 {[%emt 0:01:26]} O-O {[%emt 0:01:09]} 9. h3 {[%emt 0:01:20]} b5 {[%emt 0:02:46]} 10. c5 {[%emt 0:00:40]} Bb7 {[%emt 0:00:28]} 11. cxd6 {[%emt 0:02:23]} Bxd6 {[%emt 0:00:22]} 12. Qc2 {[%emt 0:00:24]} c5 {[%emt 0:01:16]} 13. dxe5 {[%emt 0:01:44]} Nxe5 {[%emt 0:00:22]} 14. Rd1 {[%emt 0:00:22]} Qc7 {[%emt 0:02:44]} 15. Nh4 {[%emt 0:04:54]} Nc6 {[%emt 0:05:58]} 16. Nf5 {[%emt 0:01:39]} Nd4 {[%emt 0:00:38]} 17. Nxd4 {[%emt 0:05:44]} cxd4 {[%emt 0:00:22]} 18. Rxd4 {[%emt 0:00:21]} Be5 {[%emt 0:02:34]} 19. Bf4 {[%emt 0:01:07]} Bxf4 {[%emt 0:00:56]} 20. gxf4 {[%emt 0:00:21]} Qxf4 {[%emt 0:00:23]} 21. Rad1 {[%emt 0:00:22]} Rab8 {[%emt 0:04:52]} 22. Qd2 {[%emt 0:01:04]} Qxd2 {[%emt 0:02:24]} 23. R1xd2 {[%emt 0:00:23]} Rfe8 {[%emt 0:00:34]} 24. f4 {[%emt 0:01:11]} Nh5 {[%emt 0:01:25]} 25. Ne2 {[%emt 0:00:54]} g6 {[%emt 0:00:43]} 26. e5 {[%emt 0:00:56]} Bxg2 {[%emt 0:00:24]} 27. Kxg2 {[%emt 0:00:22]} f6 {[%emt 0:00:21]} 28. exf6 {[%emt 0:00:34]} Nxf6 {[%emt 0:00:21]} 29. Ng3 {[%emt 0:00:42]} Rb6 {[%emt 0:00:48]} 30. Rd6 {[%emt 0:00:37]} Re6 {[%emt 0:00:30]} 31. Rd8+ {[%emt 0:00:33]} Kf7 {[%emt 0:00:24]} 32. Kf3 {[%emt 0:00:40]} Rbc6 {[%emt 0:00:28]} 33. f5 {[%emt 0:01:20]} Re5 {[%emt 0:00:37]} 34. Kf4 {[%emt 0:01:38]} Re1 {[%emt 0:01:05]} 35. R8d6 {[%emt 0:01:15]} Rec1 {[%emt 0:00:29]} 36. b3 {[%emt 0:01:26]} R1c5 {[%emt 0:00:35]} 37. Rd8 {[%emt 0:01:04]} gxf5 {[%emt 0:00:30]} 38. Ra8 {[%emt 0:01:27]} Nd5+ {[%emt 0:02:22]} 1/2-1/2

[Event "CIS Master Groups 2024"]
[Site "Vasto"]
[Date "2024.04.13"]
[Round "9.19"]
[White "Altini, Nicola"]
[Black "Bifulco, Michel"]
[Result "1-0"]
[ECO "D02"]
[WhiteElo "2393"]
[BlackElo "2303"]
[Annotator "RC"]
[PlyCount "61"]
[EventDate "2024.04.07"]
[EventType "team-tourn"]
[EventCountry "ITA"]
[SourceTitle "playchess.com"]
[Source "ChessBase"]
[SourceQuality "1"]
[TimeControl "40/5400+30:900+30"]

1. d4 {[%emt 1:05:41]} d5 {[%emt 1:05:42]} 2. Nf3 {[%emt 0:00:21]} Nf6 {[%emt 0:00:23]} 3. Bf4 {[%emt 0:00:22]} e6 {[%emt 0:00:27]} 4. e3 {[%emt 0:00:25]} c5 {[%emt 0:00:21]} 5. c3 {[%emt 0:01:15]} Nc6 {[%emt 0:00:31]} 6. Nbd2 {[%emt 0:00:22]} Nh5 {[%emt 0:00:32]} 7. Be5 {[%emt 0:00:21]} f6 {[%emt 0:00:29]} 8. Bg3 {[%emt 0:00:22]} g6 {[%emt 0:01:14]} 9. Bh4 {[%emt 0:02:18]} cxd4 {[%emt 0:00:52]} 10. exd4 {[%emt 0:00:39]} Bd6 {[%emt 0:01:23]} 11. Bb5 {[%emt 0:01:38]} O-O {[%emt 0:01:00]} 12. O-O {[%emt 0:00:38]} g5 {[%emt 0:08:29]} 13. Bg3 {[%emt 0:00:36]} Nf4 {[%emt 0:00:44]} 14. c4 {[%emt 0:02:46]} Qe7 {[%emt 0:00:59]} 15. Re1 {[%emt 0:01:33]} Qf7 {[%emt 0:00:52]} 16. cxd5 {[%emt 0:02:14]} exd5 {[%emt 0:00:21]} 17. Nf1 {[%emt 0:03:06]} h5 {[%emt 0:03:08]} 18. h4 {[%emt 0:01:44]} g4 {[%emt 0:01:23]} 19. N3h2 {[%emt 0:00:25]} a6 {[%emt 0:01:02]} 20. Bxc6 {[%emt 0:01:02]} bxc6 {[%emt 0:00:21]} 21. Qd2 {[%emt 0:00:26]} Qc7 {[%emt 0:00:35]} 22. Ne3 {[%emt 0:01:24]} Ng6 {[%emt 0:01:51]} 23. Nhf1 {[%emt 0:02:44]} f5 {[%emt 0:01:07]} 24. Nxd5 {[%emt 0:01:41]} cxd5 {[%emt 0:00:42]} 25. Qg5 {[%emt 0:00:22]} Kg7 {[%emt 0:02:25]} 26. Rac1 {[%emt 0:00:24]} Qd7 {[%emt 0:01:21]} 27. Bxd6 {[%emt 0:00:54]} Qxd6 28. Ng3 {[%emt 0:00:21]} Ra7 {[%emt 0:02:06]} 29. Rxc8 {[%emt 0:00:29]} Qb4 {[%emt 0:02:22]} 30. Re6 {[%emt 0:01:27]} Rxc8 {[%emt 0:00:56]} 31. Rxg6+ {[%emt 0:02:42]} 1-0